bitfinex-derivatives/quotes_BTCF0:USTF0_20251125
["timestamp","ask_amount","ask_price","bid_price","bid_amount"]
[1764095581253,0.68994,87668.0,87667.0,0.75381735]
[1764095581458,0.45,87668.0,87667.0,0.75381735]
[1764095582556,0.0001711,87672.0,87671.0,0.43592]
[1764095582750,0.80338,87690.0,87689.0,0.4473304]
[1764095582950,1.17338,87690.0,87689.0,0.7502204]
[1764095583160,0.81258,87690.0,87689.0,1.1110204]
[1764095583363,0.81258,87690.0,87689.0,1.22508775]
[1764095583561,0.58258,87690.0,87689.0,1.22508775]
[1764095583861,0.89258,87690.0,87689.0,1.22508775]
[1764095584257,0.89258,87690.0,87689.0,1.42996685]
[1764095584551,0.89358,87690.0,87689.0,1.42996685]
[1764095585352,0.89458,87690.0,87689.0,1.42996685]
[1764095585552,0.89458,87690.0,87689.0,1.30699685]
[1764095586054,0.89458,87690.0,87689.0,1.23350775]
[1764095587850,0.67211,87690.0,87689.0,1.23350775]
[1764095588050,0.452,87690.0,87689.0,1.32668306]
[1764095588461,0.0001711,87698.0,87697.0,0.4473293]
[1764095588759,0.44258,87699.0,87698.0,0.4473292]
[1764095588962,0.83258,87699.0,87698.0,0.4473292]
[1764095589662,0.83258,87699.0,87698.0,0.56135623]
[1764095590056,0.39,87699.0,87698.0,0.56135623]
[1764095590465,0.0001711,87707.0,87706.0,0.4473282]
[1764095590660,0.4201711,87707.0,87706.0,0.9880082]
[1764095591060,0.4201711,87707.0,87706.0,1.10203523]
[1764095593069,0.8657411,87707.0,87706.0,0.47482703]
[1764095593271,0.8657411,87707.0,87706.0,0.29390703]
[1764095593468,0.44755,87702.0,87701.0,0.20442161]
[1764095593672,0.86755,87702.0,87701.0,0.38430161]
[1764095593973,0.86755,87702.0,87701.0,0.17988]
[1764095594468,0.86755,87702.0,87701.0,0.39465]
[1764095594666,0.86755,87702.0,87701.0,0.61509]
[1764095594973,0.86755,87702.0,87701.0,0.39465]
[1764095595564,0.86755,87702.0,87701.0,0.61509]
[1764095595764,0.86755,87702.0,87701.0,0.72911313]
[1764095597267,0.86755,87702.0,87701.0,0.29390313]
[1764095597675,0.86755,87702.0,87701.0,0.30531193]
[1764095597870,0.86755,87702.0,87701.0,0.52008193]
[1764095598177,0.86755,87702.0,87701.0,0.74052193]
[1764095598886,0.42,87702.0,87701.0,0.74052193]
[1764095599080,0.86755,87702.0,87701.0,0.72911313]
[1764095601878,0.86755,87702.0,87701.0,0.54923313]
[1764095602191,0.86755,87702.0,87701.0,0.34020193]
[1764095602367,0.86755,87702.0,87701.0,0.52004193]
[1764095602674,0.86755,87702.0,87701.0,0.50863313]
[1764095602880,0.86755,87702.0,87701.0,0.11402313]
[1764095603082,0.86755,87702.0,87701.0,0.29386313]
[1764095603281,0.86755,87702.0,87701.0,0.17984]
[1764095603484,0.86755,87702.0,87701.0,0.29386313]
[1764095606979,0.86755,87702.0,87701.0,0.11402313]
[1764095607170,0.44755,87697.0,87696.0,0.3722095]
[1764095607377,0.86755,87697.0,87696.0,0.5520495]
[1764095607886,0.86755,87697.0,87696.0,0.7668195]
[1764095608379,0.86755,87697.0,87696.0,1.22919913]
[1764095612077,0.86755,87697.0,87696.0,1.10128913]
[1764095613686,0.86755,87697.0,87696.0,0.65466963]
[1764095613895,0.44755,87691.0,87690.0,0.0001711]
[1764095614085,0.83755,87691.0,87690.0,0.20512372]
[1764095614285,0.83755,87691.0,87690.0,0.38496372]
[1764095614885,0.83755,87691.0,87690.0,0.1800111]
[1764095617187,0.44755,87684.0,87683.0,0.20495262]
[1764095617389,0.44755,87661.0,87660.0,0.57557]
[1764095617582,0.89755,87661.0,87660.0,0.5520542]
[1764095617886,0.89755,87661.0,87660.0,1.10131074]
[1764095618087,0.89755,87661.0,87660.0,1.17905857]
[1764095619089,0.89755,87661.0,87660.0,0.81825857]
[1764095619886,0.89755,87661.0,87660.0,0.81925857]
[1764095620187,0.89755,87661.0,87660.0,0.82025857]
[1764095620696,0.89755,87661.0,87660.0,0.38504857]
[1764095620887,0.89755,87661.0,87660.0,0.27100203]
[1764095626500,0.89755,87661.0,87660.0,0.49397203]
[1764095628002,0.89755,87661.0,87660.0,0.27100203]
[1764095629997,1.00053,87661.0,87660.0,0.27100203]
[1764095630588,1.00053,87661.0,87660.0,0.09116203]
[1764095630793,0.46712,87657.0,87656.0,0.01501986]
[1764095630994,1.26792,87657.0,87656.0,0.01501986]
[1764095631296,1.26792,87657.0,87656.0,0.46067986]
[1764095632195,1.26792,87657.0,87656.0,0.55366201]
[1764095633000,1.26792,87657.0,87656.0,0.55566201]
[1764095633896,0.44,87657.0,87656.0,0.66974368]
[1764095634097,0.90712,87657.0,87656.0,0.66974368]
[1764095634598,0.44,87657.0,87656.0,0.66974368]
[1764095637396,0.3608,87668.0,87667.0,0.4570733]
[1764095637708,0.97428,87668.0,87667.0,0.6369933]
[1764095637895,0.97428,87668.0,87667.0,0.75107497]
[1764095638101,1.20792,87668.0,87667.0,0.75107497]
[1764095638902,0.84712,87668.0,87667.0,0.75107497]
[1764095641705,0.38,87668.0,87667.0,0.75107497]
[1764095642103,0.81234,87668.0,87667.0,0.75107497]
[1764095642304,0.81234,87668.0,87667.0,0.73966167]
[1764095642704,0.94549,87668.0,87667.0,0.11408167]
[1764095642908,0.94549,87668.0,87660.0,0.3608]
[1764095643116,0.43234,87657.0,87654.0,0.20427409]
[1764095643407,0.85234,87657.0,87656.0,0.28792201]
[1764095643603,0.85234,87657.0,87656.0,0.10800201]
[1764095643805,0.85234,87657.0,87656.0,0.28792201]
[1764095645213,0.85134,87657.0,87656.0,0.28792201]
[1764095645510,0.85134,87657.0,87656.0,0.28892201]
[1764095645714,0.85134,87657.0,87656.0,0.28992201]
[1764095646416,0.85134,87657.0,87656.0,0.11000201]
[1764095646612,0.85134,87657.0,87652.0,0.0001711]
[1764095646613,0.43234,87653.0,87652.0,0.0001711]
[1764095646815,1.21314,87653.0,87652.0,0.0001711]
[1764095647616,1.21322653,87653.0,87652.0,0.09036391]
[1764095647815,1.21322653,87653.0,87644.0,0.35539664]
[1764095648015,0.79314,87645.0,87644.0,0.35539664]
[1764095648207,1.21214,87645.0,87644.0,0.53531664]
[1764095648404,1.21214,87645.0,87644.0,0.54888892]
[1764095648609,1.21214,87645.0,87644.0,0.36896892]
[1764095648803,1.21214,87645.0,87644.0,0.38038512]
[1764095649009,1.21214,87645.0,87644.0,0.81183512]
[1764095649933,1.21214,87645.0,87644.0,0.90388948]
[1764095651206,0.85234,87645.0,87644.0,0.90388948]
[1764095651505,0.42,87645.0,87644.0,1.01798677]
[1764095651709,0.42,87645.0,87644.0,1.37878677]
[1764095653221,0.8578,87645.0,87644.0,1.01197393]
[1764095654311,0.42,87645.0,87644.0,1.01197393]
[1764095654710,0.63192,87645.0,87644.0,1.01197393]
[1764095654911,0.42,87645.0,87644.0,1.01197393]
[1764095656521,8.653e-05,87653.0,87652.0,0.4560552]
[1764095656718,0.03008653,87653.0,87652.0,0.6359752]
[1764095657016,0.40008653,87653.0,87652.0,0.6359752]
[1764095657216,0.40008653,87653.0,87652.0,0.75007249]
[1764095657521,0.40108653,87653.0,87652.0,0.75007249]
[1764095657917,0.40108653,87653.0,87652.0,1.11087249]
[1764095658214,0.61300653,87653.0,87652.0,1.11087249]
[1764095658717,0.40208653,87653.0,87652.0,1.11087249]
[1764095659222,0.83988653,87653.0,87652.0,1.11087249]
[1764095660219,0.40208653,87653.0,87652.0,1.11087249]
[1764095660818,0.83988653,87653.0,87652.0,1.11087249]
[1764095661316,0.83988653,87653.0,87652.0,0.88622249]
[1764095661618,0.83988653,87653.0,87652.0,1.11087249]
[1764095663722,0.83988653,87653.0,87652.0,0.65481729]
[1764095663927,0.4378,87649.0,87648.0,0.20427409]
[1764095664119,0.8878,87649.0,87648.0,0.38419409]
[1764095664423,0.8878,87649.0,87648.0,0.17992]
[1764095668526,0.8878,87649.0,87648.0,0.62456]
[1764095668725,0.8878,87649.0,87648.0,0.39991]
[1764095668928,0.8878,87649.0,87648.0,0.6359757]
[1764095669626,0.8878,87649.0,87648.0,0.4113257]
[1764095670030,0.8878,87649.0,87648.0,0.17992]
[1764095671132,0.8878,87649.0,87648.0,0.1913357]
[1764095671331,0.8878,87649.0,87648.0,0.17992]
[1764095671727,0.4378,87645.0,87644.0,0.10562664]
[1764095671922,1.2486,87645.0,87644.0,0.17992]
[1764095672925,1.2486,87645.0,87644.0,0.1913362]
[1764095673124,1.2496,87645.0,87644.0,0.1913362]
[1764095673328,1.2496,87645.0,87644.0,0.28434934]
[1764095673826,1.2486,87645.0,87644.0,0.28434934]
[1764095674333,1.2486,87645.0,87644.0,0.28665966]
[1764095674534,1.2486,87645.0,87644.0,0.50664966]
[1764095674724,0.8878,87645.0,87644.0,0.73129966]
[1764095675028,0.8878,87645.0,87644.0,0.28665966]
[1764095675423,0.8878,87645.0,87644.0,0.50664966]
[1764095676334,0.8878,87645.0,87644.0,0.73129966]
[1764095679332,0.8878,87645.0,87644.0,0.74271586]
[1764095679734,0.8878,87645.0,87644.0,1.10351586]
[1764095682432,0.45,87645.0,87644.0,1.21761315]
[1764095682635,0.10763204,87645.0,87644.0,1.21761315]
[1764095682836,0.36088653,87653.0,87652.0,0.4424252]
[1764095683039,0.71088653,87653.0,87652.0,0.4424252]
[1764095683432,0.71088653,87653.0,87652.0,0.55652249]
[1764095684236,1.13398653,87653.0,87652.0,0.55652249]
[1764095684534,1.13298653,87653.0,87652.0,0.73644249]
[1764095684924,1.13398653,87653.0,87652.0,0.72502729]
[1764095685128,1.13398653,87653.0,87652.0,0.50311729]
[1764095685330,0.71188653,87653.0,87652.0,0.17992]
[1764095685524,1.13398653,87653.0,87652.0,0.17992]
[1764095685738,1.13298653,87653.0,87652.0,0.17992]
[1764095686836,0.4221,87645.0,87644.0,0.10673966]
[1764095687137,0.8121,87645.0,87644.0,0.17992]
[1764095687340,0.4221,87637.0,87636.0,0.2206884]
[1764095687538,0.8621,87637.0,87636.0,0.41429436]
[1764095687835,0.8621,87637.0,87636.0,0.81612436]
[1764095688537,0.8621,87637.0,87636.0,0.6111011]
[1764095689238,0.8621,87637.0,87636.0,0.62483705]
[1764095689437,0.44,87637.0,87636.0,0.83211249]
[1764095689744,0.8621,87637.0,87636.0,0.83211249]
[1764095689933,0.65272,87637.0,87636.0,0.83211249]
[1764095691538,0.8621,87637.0,87636.0,0.83211249]
[1764095693145,0.44,87637.0,87636.0,0.83211249]
[1764095694030,0.8621,87637.0,87636.0,0.83211249]
[1764095694638,0.8621,87637.0,87636.0,0.40110249]
[1764095695142,0.8621,87637.0,87636.0,0.61120249]
[1764095695740,0.8621,87637.0,87636.0,0.62261979]
[1764095695944,0.8621,87637.0,87636.0,0.84452979]
[1764095696451,0.8621,87637.0,87636.0,0.84352979]
[1764095698345,0.8621,87637.0,87636.0,0.83211249]
[1764095698546,0.8621,87637.0,87636.0,0.84352979]
[1764095700245,0.8621,87637.0,87636.0,0.83211249]
[1764095700444,0.8621,87637.0,87636.0,0.61111249]
[1764095700649,0.8621,87637.0,87636.0,0.82256249]
[1764095704639,0.8621,87637.0,87636.0,0.10707479]
[1764095705052,0.8621,87637.0,87636.0,0.26350539]
[1764095705246,0.8621,87637.0,87636.0,0.19491626]
[1764095706442,0.41945,87629.0,87628.0,0.00028603]
[1764095706651,1.18025,87629.0,87628.0,0.18024603]
[1764095706846,1.18025,87629.0,87628.0,0.19542842]
[1764095708151,1.18025,87629.0,87628.0,0.70732499]
[1764095708552,1.18025,87629.0,87628.0,0.28586499]
[1764095709151,1.18025,87629.0,87628.0,0.10590499]
[1764095709450,1.18025,87629.0,87600.0,0.33452832]
[1764095709451,0.20957,87601.0,87600.0,0.33452832]
[1764095709751,0.85945,87601.0,87600.0,0.69442489]
[1764095710342,0.85959723,87601.0,87600.0,0.70944983]
[1764095710546,0.85959723,87601.0,87600.0,0.71244983]
[1764095714455,0.85959723,87601.0,87600.0,0.29098983]
[1764095714659,0.85959723,87601.0,87600.0,0.70940983]
[1764095715455,0.44014723,87601.0,87600.0,0.70940983]
[1764095715659,0.44014723,87601.0,87600.0,0.82356442]
[1764095721156,0.86794723,87601.0,87600.0,0.64360442]
[1764095721361,0.86794723,87601.0,87600.0,0.82360442]
[1764095722062,0.86794723,87601.0,87600.0,0.83502642]
[1764095723056,0.86794723,87601.0,87600.0,0.40518442]
[1764095723256,0.86794723,87601.0,87600.0,0.11102983]
[1764095723459,0.86794723,87601.0,87592.0,0.0001712]
[1764095723768,0.7886,87593.0,87592.0,0.10463695]
[1764095723960,1.2286,87593.0,87592.0,0.01505836]
[1764095725162,1.2286,87593.0,87592.0,0.02648136]
[1764095725560,1.2286,87593.0,87592.0,0.11907453]
[1764095725766,1.2286,87593.0,87592.0,0.01505836]
[1764095726164,0.8678,87593.0,87592.0,0.52592536]
[1764095726364,0.8678,87593.0,87592.0,0.54764338]
[1764095727459,0.8678,87593.0,87592.0,0.63938698]
[1764095728860,0.44,87593.0,87592.0,1.00018698]
[1764095729167,0.3608,87611.0,87592.0,1.00018698]
[1764095729168,0.3608,87611.0,87608.0,0.4298409]
[1764095729369,0.3601712,87609.0,87608.0,0.6098809]
[1764095729754,0.3601712,87609.0,87608.0,0.72404592]
[1764095730071,0.78808299,87609.0,87608.0,0.71262502]
[1764095731467,0.36028299,87609.0,87608.0,0.71262502]
[1764095732467,0.57417299,87609.0,87608.0,0.71262502]
[1764095733358,0.78808299,87609.0,87608.0,0.71262502]
[1764095734671,0.78808299,87609.0,87608.0,0.29420502]
[1764095735166,0.78808299,87609.0,87608.0,0.50228502]
[1764095735364,0.78808299,87609.0,87608.0,0.71262502]
[1764095735970,0.78808299,87609.0,87608.0,0.71258502]
[1764095737167,0.4278,87599.0,87598.0,0.63502969]
[1764095737470,0.8378,87599.0,87598.0,0.6098422]
[1764095737773,0.41,87599.0,87598.0,0.72398637]
[1764095737961,0.8378,87599.0,87598.0,0.72398637]
[1764095739175,0.41,87599.0,87598.0,0.72398637]
[1764095740068,0.3864706,87599.0,87598.0,0.72398637]
[1764095740571,0.00028299,87609.0,87608.0,0.5336209]
[1764095740769,0.39028299,87609.0,87608.0,1.0744609]
[1764095741072,0.38028299,87609.0,87608.0,1.18860507]
[1764095741266,0.3608,87627.0,87626.0,0.3552386]
[1764095741267,0.77627,87627.0,87626.0,0.3552386]
[1764095741574,1.17627,87627.0,87626.0,0.5352786]
[1764095742073,1.17627,87627.0,87626.0,0.64942277]
[1764095742970,1.17627,87627.0,87626.0,0.7413956]
[1764095746175,1.17627,87627.0,87626.0,0.386157]
[1764095746666,1.17627,87627.0,87626.0,0.386117]
[1764095750669,1.17627,87627.0,87626.0,0.639317]
[1764095751060,1.17627,87627.0,87626.0,0.386117]
[1764095753777,1.17627,87627.0,87626.0,0.639317]
[1764095754367,0.81547,87627.0,87626.0,0.639317]
[1764095757071,0.81547,87627.0,87626.0,0.386117]
[1764095760073,0.81547,87627.0,87626.0,0.3975356]
[1764095760880,0.81547,87627.0,87626.0,0.386117]
[1764095761479,0.81547,87627.0,87626.0,0.3975356]
[1764095762979,0.81547,87627.0,87626.0,0.206117]
[1764095763180,0.81547,87627.0,87626.0,0.27193283]
[1764095763487,0.81547,87627.0,87626.0,0.09197283]
[1764095763681,0.81547,87627.0,87626.0,0.17996]
[1764095764182,0.81547,87627.0,87618.0,0.0001712]
[1764095764183,0.56739,87619.0,87618.0,0.0001712]
[1764095764478,1.00739,87619.0,87618.0,0.1801312]
[1764095765274,1.00739,87619.0,87618.0,0.1811312]
[1764095765479,1.00739,87619.0,87618.0,0.27432935]
[1764095765676,0.43731,87607.0,87606.0,0.21645213]
[1764095765871,1.18811,87607.0,87606.0,0.21645213]
[1764095766070,1.18811,87607.0,87606.0,0.2238012]
[1764095766485,1.18811,87607.0,87606.0,0.0114212]
[1764095766680,0.43731,87604.0,87603.0,0.17996]
[1764095766982,0.85731,87604.0,87603.0,0.27153681]
[1764095767175,0.85731,87604.0,87603.0,0.09157681]
[1764095767378,0.43731,87599.0,87598.0,0.0001712]
[1764095767582,1.20811,87599.0,87598.0,0.1801712]
[1764095769189,1.20811,87599.0,87598.0,0.2719816]
[1764095769586,1.20811,87599.0,87598.0,0.6905816]
[1764095769788,1.20811,87599.0,87598.0,0.2719816]
[1764095774283,1.20811,87599.0,87598.0,0.2834038]
[1764095776091,1.20811,87599.0,87598.0,0.2719816]
[1764095776687,1.20811,87599.0,87598.0,0.2834038]
[1764095776995,1.20811,87599.0,87598.0,0.2719816]
[1764095777184,0.43968,87595.0,87594.0,0.0114227]
[1764095777391,0.43968,87593.0,87591.0,0.0114231]
[1764095777693,0.43968,87592.0,87591.0,0.0114231]
[1764095777896,0.86968,87592.0,87591.0,0.0114231]
[1764095778188,0.43968,87589.0,87588.0,0.0114235]
[1764095778394,0.82868,87589.0,87588.0,0.01572881]
[1764095778589,0.21385,87587.0,87586.0,0.18004]
[1764095778789,0.88968,87587.0,87586.0,0.18004]
[1764095779298,0.88868,87587.0,87586.0,0.17298809]
[1764095779485,0.88868,87587.0,87586.0,0.61475809]
[1764095779886,0.88868,87587.0,87586.0,0.61575809]
[1764095780087,0.88768,87587.0,87586.0,0.61575809]
[1764095781188,0.88768,87587.0,87586.0,0.61475809]
[1764095781495,0.88768,87587.0,87586.0,0.17298809]
[1764095782091,0.43968,87581.0,87580.0,9.714e-05]
[1764095782282,0.43968,87564.0,87563.0,0.4531968]
[1764095782492,0.84968,87564.0,87563.0,0.6332368]
[1764095782684,0.84968,87564.0,87563.0,0.85323962]
[1764095783396,0.84968,87564.0,87563.0,0.85423962]
[1764095784188,0.84968,87564.0,87563.0,0.85523962]
[1764095784691,0.84968,87564.0,87563.0,0.84381282]
[1764095785894,0.41,87564.0,87563.0,0.97037282]
[1764095786296,0.84968,87564.0,87563.0,0.97037282]
[1764095786796,0.84968,87564.0,87563.0,0.10782998]
[1764095786994,0.84968,87564.0,87563.0,0.54959998]
[1764095787384,0.84968,87564.0,87563.0,0.67615998]
[1764095787590,0.41,87564.0,87563.0,0.79036281]
[1764095788496,0.63583,87564.0,87563.0,0.79036281]
[1764095788896,0.84968,87564.0,87563.0,0.78936281]
[1764095789099,0.84968,87564.0,87563.0,0.79036281]
[1764095789800,0.84968,87564.0,87563.0,0.43998281]
[1764095789991,0.84968,87564.0,87563.0,0.28790998]
[1764095790196,0.84968,87564.0,87563.0,0.50585998]
[1764095790392,0.84968,87564.0,87563.0,0.72967998]
[1764095790998,0.84968,87564.0,87563.0,0.50585998]
[1764095791997,0.84968,87564.0,87563.0,0.72967998]
[1764095793697,9.714e-05,87581.0,87580.0,0.44177]
[1764095793891,0.60006,87595.0,87594.0,0.44177]
[1764095794096,0.98006,87595.0,87594.0,0.4531928]
[1764095794307,0.61926,87595.0,87594.0,0.4531928]
[1764095794700,0.27657906,87595.0,87594.0,0.4531928]
[1764095794898,0.27657906,87595.0,87594.0,0.44177]
[1764095795411,0.27657906,87595.0,87594.0,0.62193]
[1764095795711,0.0001713,87603.0,87602.0,0.4531917]
[1764095795903,0.3608,87627.0,87624.0,0.56833]
[1764095796099,0.7908,87627.0,87616.0,0.34451]
[1764095796300,0.12327978,87626.0,87616.0,0.12656]
[1764095796496,0.44,87626.0,87616.0,0.12656]
[1764095797502,0.441,87626.0,87616.0,0.12656]
[1764095798504,0.442,87626.0,87616.0,0.12656]
[1764095798804,0.4534186,87626.0,87616.0,0.12656]
[1764095798998,0.0114189,87624.0,87616.0,0.21733782]
[1764095799199,0.3608,87617.0,87616.0,0.09077782]
[1764095799396,0.7508,87617.0,87612.0,0.0001712]
[1764095799913,0.7508,87617.0,87612.0,0.09035952]
[1764095800212,0.7508,87617.0,87615.0,0.01142]
[1764095800597,0.7518,87617.0,87615.0,0.01142]
[1764095800797,0.7518,87617.0,87616.0,0.44177]
[1764095802411,0.7528,87617.0,87616.0,0.44177]
[1764095802598,0.7518,87617.0,87616.0,0.44177]
[1764095802911,0.7528,87617.0,87616.0,0.44177]
[1764095803502,0.7528,87617.0,87616.0,0.21795]
[1764095803503,0.80208,87617.0,87616.0,0.21795]
[1764095803705,0.80208,87617.0,87616.0,0.4554699]
[1764095804311,0.80208,87617.0,87616.0,0.44405]
[1764095804716,0.04928,87613.0,87612.0,0.09368879]
[1764095805014,0.45928,87613.0,87612.0,0.09368879]
[1764095805809,0.46028,87613.0,87612.0,0.09368879]
[1764095806115,0.46128,87613.0,87612.0,0.54638879]
[1764095807012,0.45928,87613.0,87612.0,0.54638879]
[1764095807211,0.46128,87613.0,87612.0,0.32028879]
[1764095809033,0.46028,87613.0,87612.0,0.54638879]
[1764095809522,0.46128,87613.0,87612.0,0.54638879]
[1764095811619,0.46028,87613.0,87612.0,0.54638879]
[1764095811819,0.46128,87613.0,87612.0,0.54638879]
[1764095812725,0.46128,87613.0,87612.0,0.09368879]
[1764095813225,0.46028,87613.0,87612.0,0.32028879]
[1764095813413,0.46128,87613.0,87612.0,0.54638879]
[1764095813919,0.46128,87613.0,87612.0,0.32028879]
[1764095814321,0.46128,87613.0,87612.0,0.54638879]
[1764095814522,0.46028,87613.0,87612.0,0.54638879]
[1764095814724,0.46128,87613.0,87612.0,0.54638879]
[1764095816129,0.46128,87613.0,87612.0,0.55780919]
[1764095818632,0.46028,87613.0,87612.0,0.55780919]
[1764095818822,0.46128,87613.0,87612.0,0.55780919]
[1764095821139,0.46028,87613.0,87612.0,0.55780919]
[1764095821440,0.46128,87613.0,87612.0,0.54638879]
[1764095821637,0.82108,87613.0,87612.0,0.09368879]
[1764095821935,0.82208,87613.0,87612.0,0.09368879]
[1764095822328,0.82108,87613.0,87612.0,0.09368879]
[1764095822528,0.82208,87613.0,87612.0,0.09368879]
[1764095822934,0.82108,87613.0,87612.0,0.09368879]
[1764095823136,0.82308,87613.0,87612.0,0.09368879]
[1764095824140,0.8345003,87613.0,87612.0,0.09368879]
[1764095824640,0.8335003,87613.0,87612.0,0.09368879]
[1764095824940,0.82308,87613.0,87612.0,0.09368879]
[1764095825141,0.79844,87613.0,87612.0,0.67272879]
[1764095825331,0.7738,87613.0,87612.0,0.67272879]
[1764095825527,0.79844,87613.0,87612.0,0.67272879]
[1764095825842,0.82308,87613.0,87612.0,0.67272879]
[1764095826043,0.82308,87613.0,87612.0,0.09368879]
[1764095826942,0.82308,87613.0,87612.0,0.10510919]
[1764095827333,0.8345003,87613.0,87612.0,0.09368879]
[1764095827539,0.8335003,87613.0,87612.0,0.09368879]
[1764095827733,0.8325003,87613.0,87612.0,0.09368879]
[1764095827933,0.82208,87613.0,87612.0,0.09368879]
[1764095828134,0.82108,87613.0,87612.0,0.09368879]
[1764095828439,0.82308,87613.0,87612.0,0.09368879]
[1764095828836,0.8345003,87613.0,87612.0,0.09368879]
[1764095829040,0.011421,87608.0,87603.0,0.0114215]
[1764095829240,0.421421,87608.0,87603.0,0.0114215]
[1764095829439,0.421421,87608.0,87605.0,0.0114213]
[1764095829637,0.0114216,87603.0,87600.0,0.12656]
[1764095829936,0.3608,87601.0,87600.0,0.09179003]
[1764095830137,0.0114226,87596.0,87593.0,0.0001712]
[1764095830450,0.4214226,87596.0,87593.0,0.0001712]
[1764095831239,0.4224226,87596.0,87593.0,0.0001712]
[1764095831445,0.4224226,87596.0,87593.0,0.09113729]
[1764095831644,0.4234226,87596.0,87593.0,0.0001712]
[1764095832247,0.4244226,87596.0,87593.0,0.0001712]
[1764095832545,0.0114226,87595.0,87593.0,0.0001712]
[1764095832743,0.4514226,87595.0,87593.0,0.0001712]
[1764095834539,0.4534226,87595.0,87593.0,0.0001712]
[1764095834739,0.4544226,87595.0,87593.0,0.0001712]
[1764095838646,0.18016,87594.0,87593.0,0.0001712]
[1764095838852,0.62016,87594.0,87593.0,0.0001712]
[1764095839058,1.02016,87594.0,87593.0,0.0001712]
[1764095839349,0.0114262,87568.0,87556.0,0.14495]
[1764095839551,0.3608,87564.0,87563.0,0.0114268]
[1764095839743,0.7308,87564.0,87563.0,0.36573535]
[1764095839944,0.7308,87564.0,87563.0,0.4969068]
[1764095840551,0.7308,87564.0,87563.0,0.51406869]
[1764095843054,0.7308,87564.0,87563.0,0.60737789]
[1764095843449,0.0001713,87572.0,87571.0,0.4969058]
[1764095843749,0.4301713,87572.0,87571.0,0.4969058]
[1764095844250,0.9070813,87572.0,87571.0,0.48548]
[1764095844638,0.9080813,87572.0,87571.0,0.24732]
[1764095844844,0.47691,87564.0,87563.0,0.59595109]
[1764095845046,0.47691,87564.0,87563.0,0.51406869]
[1764095845047,0.38,87564.0,87563.0,0.51406869]
[1764095845244,0.38,87564.0,87563.0,0.50264189]
[1764095845443,0.85691,87564.0,87563.0,0.50264189]
[1764095845653,0.85691,87564.0,87563.0,0.59480882]
[1764095846946,0.38,87564.0,87563.0,0.59480882]
[1764095848153,0.85691,87564.0,87563.0,0.59480882]
[1764095850259,0.85691,87564.0,87563.0,0.10932882]
[1764095850449,0.47691,87557.0,87556.0,0.63043]
[1764095850650,0.88691,87557.0,87556.0,0.63043]
[1764095851859,0.88691,87557.0,87556.0,0.64770959]
[1764095852367,0.88691,87557.0,87556.0,0.73715118]
[1764095857055,1.2591376,87557.0,87556.0,0.10672118]
[1764095857259,0.47691,87548.0,87547.0,0.00013059]
[1764095857453,1.27771,87548.0,87547.0,0.08983749]
[1764095858052,1.27771,87548.0,87547.0,0.10668703]
[1764095858355,1.27771,87548.0,87547.0,0.01698013]
[1764095858952,1.27871,87548.0,87547.0,0.01698013]
[1764095859562,1.2901388,87548.0,87547.0,0.01698013]
[1764095859762,1.2921388,87548.0,87547.0,0.01698013]
[1764095860255,0.47691,87531.0,87530.0,0.496911]
[1764095860454,1.27771,87531.0,87530.0,0.48548]
[1764095860853,0.47691,87530.0,87529.0,0.2587512]
[1764095861060,0.47691,87530.0,87529.0,0.59001895]
[1764095861061,0.87691,87530.0,87529.0,0.59001895]
[1764095861254,0.87700305,87530.0,87529.0,0.59001895]
[1764095861573,0.87700305,87530.0,87529.0,0.60742199]
[1764095861760,0.40009305,87530.0,87529.0,0.60742199]
[1764095862160,0.40109305,87530.0,87529.0,0.60742199]
[1764095862356,0.02973305,87530.0,87529.0,0.60742199]
[1764095862758,0.0001713,87539.0,87538.0,0.5118501]
[1764095863062,0.84117,87563.0,87562.0,0.50042]
[1764095863267,1.03117,87563.0,87562.0,0.50042]
[1764095863564,0.48037,87553.0,87552.0,0.63203]
[1764095863764,0.67037,87553.0,87552.0,0.63203]
[1764095864064,0.67037,87553.0,87552.0,0.50042]
[1764095864261,1.03117,87553.0,87552.0,0.50042]
[1764095864465,0.48037,87545.0,87544.0,0.6322013]
[1764095864661,0.67037,87545.0,87544.0,0.6322013]
[1764095865560,0.67037,87545.0,87544.0,0.6436306]
[1764095865956,0.67337,87545.0,87544.0,0.6322013]
[1764095866360,0.193,87545.0,87544.0,0.6436306]
[1764095866562,1.03417,87545.0,87544.0,0.6322013]
[1764095866766,1.03417,87545.0,87544.0,0.0001713]
[1764095867570,1.03417,87545.0,87544.0,0.2448613]
[1764095869460,0.67337,87545.0,87544.0,0.5005913]
[1764095869656,0.193,87545.0,87544.0,0.6482313]
[1764095871764,0.1694706,87545.0,87544.0,0.6482313]
[1764095873965,6e-07,87545.0,87544.0,0.6482313]
[1764095874876,0.0062916,87545.0,87544.0,0.6482313]
[1764095875676,0.3608,87553.0,87552.0,0.58251]
[1764095876174,0.3608,87553.0,87552.0,0.5939382]
[1764095876372,0.4805413,87561.0,87560.0,0.5118472]
[1764095877274,0.4805413,87561.0,87560.0,0.6594872]
[1764095877476,0.4825413,87561.0,87560.0,0.6594872]
[1764095877870,0.0021713,87561.0,87560.0,0.6594872]
[1764095878476,0.4825413,87561.0,87560.0,0.50042]
[1764095878684,0.4825413,87561.0,87551.0,0.18024]
[1764095878685,0.62914,87552.0,87551.0,0.42493]
[1764095878972,0.98994,87552.0,87551.0,0.50042]
[1764095879178,1.0013682,87552.0,87551.0,0.08957484]
[1764095879383,0.48179,87545.0,87544.0,0.0001713]
[1764095880171,0.48179,87545.0,87544.0,0.2363513]
[1764095880373,0.3608,87548.0,87547.0,0.47582]
[1764095880572,0.3608,87548.0,87547.0,0.58032837]
[1764095880974,0.48179,87552.0,87551.0,0.47582]
[1764095881179,0.48379,87552.0,87551.0,0.47582]
[1764095881480,0.48179,87548.0,87547.0,0.09307947]
[1764095881682,0.48179,87545.0,87544.0,0.0001713]
[1764095881976,0.84259,87545.0,87544.0,0.4759913]
[1764095882377,0.8540192,87545.0,87544.0,0.0001713]
[1764095882580,0.84259,87545.0,87544.0,0.0001713]
[1764095882877,0.84359,87545.0,87544.0,0.4759913]
[1764095883377,0.84459,87545.0,87544.0,0.2363513]
[1764095883675,0.84459,87545.0,87544.0,0.0001713]
[1764095884970,0.84459,87545.0,87544.0,0.2363513]
[1764095885372,0.8560192,87545.0,87544.0,0.0001713]